[Event "Titled Tuesday Blitz August 22 Late 2023"]
[White "Burke, Paul"]
[Black "Quirke, Jeffrey"]
[WhiteFideId "2605767"]
[BlackFideId "2013029"]
[WhiteElo "1853"]
[BlackElo "2164"]
[Result "0-1"]
[Round "8"]
[TimeControl "180+1"]
[Date "2023.08.22"]
[WhiteClock "0:00:00"]
[BlackClock "0:00:04"]
[Board "150"]

1. e4 {[%clk 0:02:41]}  Nf6 {[%clk 0:02:58]} 2. Bc4 {[%clk 0:02:39]}  d5 {[%clk 0:02:55]} 3. exd5 {[%clk 0:02:38]}  Nxd5 {[%clk 0:02:55]} 4. c3 {[%clk 0:02:35]}  c6 {[%clk 0:02:53]} 5. Nf3 {[%clk 0:02:34]}  Bg4 {[%clk 0:02:52]} 6. d4 {[%clk 0:02:32]}  e6 {[%clk 0:02:52]} 7. Nbd2 {[%clk 0:02:30]}  Be7 {[%clk 0:02:49]} 8. Qc2 {[%clk 0:02:28]}  Nd7 {[%clk 0:02:44]} 9. Bd3 {[%clk 0:02:27]}  Nf4 {[%clk 0:02:41]} 10. Bf1 {[%clk 0:02:24]}  Qc7 {[%clk 0:02:36]} 11. g3 {[%clk 0:02:22]}  Nd5 {[%clk 0:02:33]} 12. Bg2 {[%clk 0:02:20]}  O-O {[%clk 0:02:31]} 13. O-O {[%clk 0:02:20]}  c5 {[%clk 0:02:27]} 14. h3 {[%clk 0:02:07]}  Bf5 {[%clk 0:02:19]} 15. Qd1 {[%clk 0:02:05]}  h6 {[%clk 0:02:19]} 16. a3 {[%clk 0:02:01]}  Rfd8 {[%clk 0:02:12]} 17. Qe2 {[%clk 0:01:54]}  Bf6 {[%clk 0:02:12]} 18. Ne4 {[%clk 0:01:42]}  Be7 {[%clk 0:02:03]} 19. dxc5 {[%clk 0:01:23]}  Bxe4 {[%clk 0:01:56]} 20. Qxe4 {[%clk 0:01:21]}  Nxc5 {[%clk 0:01:57]} 21. Qe2 {[%clk 0:01:14]}  Nb3 {[%clk 0:01:52]} 22. Rb1 {[%clk 0:01:12]}  a5 {[%clk 0:01:30]} 23. Re1 {[%clk 0:01:05]}  Rac8 {[%clk 0:01:27]} 24. Ne5 {[%clk 0:01:04]}  Nb6 {[%clk 0:00:58]} 25. Nxf7 {[%clk 0:00:53]}  Nxc1 {[%clk 0:00:49]} 26. Rbxc1 {[%clk 0:00:52]}  Kxf7 {[%clk 0:00:47]} 27. Qxe6+ {[%clk 0:00:52]}  Kf8 {[%clk 0:00:46]} 28. Re4 {[%clk 0:00:29]}  Bf6 {[%clk 0:00:46]} 29. Rf4 {[%clk 0:00:26]}  Re8 {[%clk 0:00:38]} 30. Rxf6+ {[%clk 0:00:20]}  gxf6 {[%clk 0:00:38]} 31. Qxf6+ {[%clk 0:00:21]}  Kg8 {[%clk 0:00:34]} 32. Qxh6 {[%clk 0:00:09]}  Rcd8 {[%clk 0:00:16]} 33. Rc2 {[%clk 0:00:08]}  Rd6 {[%clk 0:00:12]} 34. Qg5+ {[%clk 0:00:07]}  Qg7 {[%clk 0:00:12]} 35. Qf4 {[%clk 0:00:05]}  Red8 {[%clk 0:00:10]} 36. Re2 {[%clk 0:00:04]}  Rf6 {[%clk 0:00:08]} 37. Qh4 {[%clk 0:00:03]}  Rdf8 {[%clk 0:00:06]} 38. f4 {[%clk 0:00:02]}  Rd8 {[%clk 0:00:05]} 39. Be4 {[%clk 0:00:02]}  Rfd6 {[%clk 0:00:04]} 40. Bf5 {[%clk 0:00:01]}  Rd1+ {[%clk 0:00:04]} 41. Kf2 {[%clk 0:00:00]}  R8d2 {[%clk 0:00:04]} 0-1


[Site "https://www.chess.com"]

[Event "Titled Tuesday Blitz August 22 Late 2023"]
[White "Duda, Jan-Krzysztof"]
[Black "Nakamura, Hikaru"]
[WhiteFideId "1170546"]
[BlackFideId "2016192"]
[WhiteElo "3093"]
[BlackElo "3242"]
[Result "0-1"]
[Round "9"]
[TimeControl "180+1"]
[Date "2023.08.22"]
[WhiteClock "0:00:00"]
[BlackClock "0:00:45"]
[Board "1"]

1. e4 {[%clk 0:03:00]}  a6 {[%clk 0:03:00]} 2. d4 {[%clk 0:02:59]}  c6 {[%clk 0:03:00]} 3. Bd3 {[%clk 0:02:59]}  d5 {[%clk 0:03:00]} 4. e5 {[%clk 0:02:55]}  c5 {[%clk 0:03:01]} 5. c3 {[%clk 0:02:54]}  Nc6 {[%clk 0:03:01]} 6. Ne2 {[%clk 0:02:53]}  e6 {[%clk 0:03:01]} 7. O-O {[%clk 0:02:53]}  cxd4 {[%clk 0:03:02]} 8. cxd4 {[%clk 0:02:53]}  Nb4 {[%clk 0:03:02]} 9. Nbc3 {[%clk 0:02:52]}  Nxd3 {[%clk 0:03:02]} 10. Qxd3 {[%clk 0:02:53]}  Ne7 {[%clk 0:03:03]} 11. Ng3 {[%clk 0:02:37]}  h5 {[%clk 0:02:53]} 12. Bg5 {[%clk 0:02:36]}  h4 {[%clk 0:02:53]} 13. Nge2 {[%clk 0:02:36]}  Bd7 {[%clk 0:02:52]} 14. Qh3 {[%clk 0:02:27]}  Qb6 {[%clk 0:02:50]} 15. Rfd1 {[%clk 0:02:18]}  Nf5 {[%clk 0:02:45]} 16. g4 {[%clk 0:02:17]}  Ne7 {[%clk 0:02:43]} 17. Nf4 {[%clk 0:02:04]}  Rc8 {[%clk 0:02:37]} 18. Rd2 {[%clk 0:01:58]}  Nc6 {[%clk 0:02:33]} 19. Rad1 {[%clk 0:01:54]}  Na5 {[%clk 0:02:28]} 20. b3 {[%clk 0:01:45]}  Nc6 {[%clk 0:02:23]} 21. Nce2 {[%clk 0:01:43]}  Be7 {[%clk 0:02:16]} 22. Bxe7 {[%clk 0:01:41]}  Nxe7 {[%clk 0:02:16]} 23. Qe3 {[%clk 0:01:29]}  Bb5 {[%clk 0:01:56]} 24. Nc3 {[%clk 0:01:25]}  Kd7 {[%clk 0:01:47]} 25. Rc1 {[%clk 0:01:09]}  Rc7 {[%clk 0:01:38]} 26. Rcd1 {[%clk 0:00:58]}  Rhc8 {[%clk 0:01:36]} 27. Nxb5 {[%clk 0:00:56]}  Qxb5 {[%clk 0:01:31]} 28. Nh5 {[%clk 0:00:57]}  h3 {[%clk 0:01:22]} 29. Qxh3 {[%clk 0:00:53]}  Rc3 {[%clk 0:01:22]} 30. Rd3 {[%clk 0:00:52]}  Rc1 {[%clk 0:01:19]} 31. Kg2 {[%clk 0:00:51]}  Ng6 {[%clk 0:01:19]} 32. Qe3 {[%clk 0:00:45]}  R1c2 {[%clk 0:01:09]} 33. a4 {[%clk 0:00:41]}  Qb4 {[%clk 0:01:09]} 34. Nxg7 {[%clk 0:00:37]}  R8c3 {[%clk 0:01:09]} 35. Kg3 {[%clk 0:00:32]}  Qxb3 {[%clk 0:01:08]} 36. h4 {[%clk 0:00:29]}  Rxd3 {[%clk 0:01:06]} 37. Rxd3 {[%clk 0:00:30]}  Qb1 {[%clk 0:01:07]} 38. Kh2 {[%clk 0:00:11]}  Qf1 {[%clk 0:00:46]} 39. Rd2 {[%clk 0:00:09]}  Rc1 {[%clk 0:00:45]} 40. Qf3 {[%clk 0:00:03]}  Qg1+ {[%clk 0:00:44]} 41. Kh3 {[%clk 0:00:00]}  Rc3 {[%clk 0:00:45]} 0-1


[Site "https://www.chess.com"]

[Event "Titled Tuesday Blitz August 22 Late 2023"]
[White "Kravtsiv, Martyn"]
[Black "Xiong, Jeffery"]
[WhiteFideId "14113147"]
[BlackFideId "2047640"]
[WhiteElo "2909"]
[BlackElo "3013"]
[Result "0-1"]
[Round "9"]
[TimeControl "180+1"]
[Date "2023.08.22"]
[WhiteClock "0:00:00"]
[BlackClock "0:00:37"]
[Board "7"]

1. e4 {[%clk 0:03:00]}  e6 {[%clk 0:03:00]} 2. d4 {[%clk 0:03:00]}  d5 {[%clk 0:02:59]} 3. e5 {[%clk 0:03:00]}  c5 {[%clk 0:02:58]} 4. c3 {[%clk 0:03:00]}  Nc6 {[%clk 0:02:59]} 5. Nf3 {[%clk 0:03:00]}  Bd7 {[%clk 0:02:59]} 6. Be2 {[%clk 0:03:00]}  cxd4 {[%clk 0:02:56]} 7. cxd4 {[%clk 0:03:00]}  Nge7 {[%clk 0:02:57]} 8. Na3 {[%clk 0:02:57]}  Nf5 {[%clk 0:02:51]} 9. Nc2 {[%clk 0:02:57]}  Be7 {[%clk 0:02:52]} 10. O-O {[%clk 0:02:54]}  O-O {[%clk 0:02:52]} 11. g3 {[%clk 0:02:44]}  Rc8 {[%clk 0:02:46]} 12. Bd3 {[%clk 0:02:43]}  f6 {[%clk 0:02:43]} 13. Bf4 {[%clk 0:02:37]}  g5 {[%clk 0:02:33]} 14. exf6 {[%clk 0:02:29]}  Bxf6 {[%clk 0:02:34]} 15. Be3 {[%clk 0:02:13]}  Qe7 {[%clk 0:02:08]} 16. Qd2 {[%clk 0:01:57]}  h6 {[%clk 0:01:58]} 17. Kh1 {[%clk 0:01:38]}  Bg7 {[%clk 0:01:52]} 18. Rae1 {[%clk 0:01:28]}  Qf7 {[%clk 0:01:46]} 19. a3 {[%clk 0:00:41]}  Nd6 {[%clk 0:01:44]} 20. Ng1 {[%clk 0:00:41]}  e5 {[%clk 0:01:25]} 21. dxe5 {[%clk 0:00:34]}  Nxe5 {[%clk 0:01:25]} 22. Nd4 {[%clk 0:00:24]}  Ndc4 {[%clk 0:01:16]} 23. Bxc4 {[%clk 0:00:25]}  dxc4 {[%clk 0:01:17]} 24. f4 {[%clk 0:00:23]}  Qd5+ {[%clk 0:01:04]} 25. Qg2 {[%clk 0:00:21]}  Qxg2+ {[%clk 0:01:02]} 26. Kxg2 {[%clk 0:00:22]}  Nd3 {[%clk 0:01:03]} 27. Re2 {[%clk 0:00:19]}  gxf4 {[%clk 0:00:59]} 28. gxf4 {[%clk 0:00:18]}  Bxd4 {[%clk 0:00:56]} 29. Bxd4 {[%clk 0:00:17]}  Nxf4+ {[%clk 0:00:57]} 30. Rxf4 {[%clk 0:00:17]}  Rxf4 {[%clk 0:00:58]} 31. Bxa7 {[%clk 0:00:17]}  c3 {[%clk 0:00:52]} 32. bxc3 {[%clk 0:00:15]}  Rxc3 {[%clk 0:00:53]} 33. Re3 {[%clk 0:00:12]}  Rg4+ {[%clk 0:00:48]} 34. Kf3 {[%clk 0:00:08]}  Rcc4 {[%clk 0:00:37]} 35. Ne2 {[%clk 0:00:07]}  Bc6+ {[%clk 0:00:38]} 36. Kf2 {[%clk 0:00:07]}  Rg2+ {[%clk 0:00:38]} 37. Ke1 {[%clk 0:00:07]}  Rxh2 {[%clk 0:00:39]} 38. Rg3+ {[%clk 0:00:07]}  Kf7 {[%clk 0:00:39]} 39. Be3 {[%clk 0:00:06]}  h5 {[%clk 0:00:38]} 40. Nf4 {[%clk 0:00:06]}  h4 {[%clk 0:00:37]} 41. Rg5 {[%clk 0:00:05]}  Re4 {[%clk 0:00:37]} 42. Rf5+ {[%clk 0:00:00]}  Ke8 {[%clk 0:00:37]} 0-1


[Site "https://www.chess.com"]

[Event "Titled Tuesday Blitz August 22 Late 2023"]
[White "Kramnik, Vladimir"]
[Black "Keymer, Vincent"]
[WhiteFideId "4101588"]
[BlackFideId "12940690"]
[WhiteElo "2940"]
[BlackElo "2973"]
[Result "1-0"]
[Round "9"]
[TimeControl "180+1"]
[Date "2023.08.22"]
[WhiteClock "0:00:16"]
[BlackClock "0:00:00"]
[Board "8"]

1. e4 {[%clk 0:03:00]}  c6 {[%clk 0:02:59]} 2. d4 {[%clk 0:03:00]}  d5 {[%clk 0:03:00]} 3. Nd2 {[%clk 0:03:00]}  dxe4 {[%clk 0:03:01]} 4. Nxe4 {[%clk 0:03:00]}  Nf6 {[%clk 0:03:02]} 5. Nxf6+ {[%clk 0:02:59]}  exf6 {[%clk 0:03:02]} 6. c3 {[%clk 0:02:59]}  Bd6 {[%clk 0:03:03]} 7. Bd3 {[%clk 0:02:59]}  O-O {[%clk 0:03:04]} 8. Ne2 {[%clk 0:02:59]}  Re8 {[%clk 0:03:04]} 9. O-O {[%clk 0:03:00]}  Nd7 {[%clk 0:03:04]} 10. Ng3 {[%clk 0:03:00]}  g6 {[%clk 0:03:03]} 11. Bh6 {[%clk 0:02:59]}  Nb6 {[%clk 0:02:47]} 12. Qd2 {[%clk 0:02:35]}  f5 {[%clk 0:02:41]} 13. Rfe1 {[%clk 0:02:28]}  Be6 {[%clk 0:02:39]} 14. Bg5 {[%clk 0:02:03]}  Qc7 {[%clk 0:02:35]} 15. b3 {[%clk 0:01:41]}  Nd5 {[%clk 0:02:24]} 16. Rad1 {[%clk 0:01:17]}  a5 {[%clk 0:01:11]} 17. c4 {[%clk 0:01:13]}  Bf4 {[%clk 0:00:56]} 18. Bxf4 {[%clk 0:01:12]}  Nxf4 {[%clk 0:00:56]} 19. Bf1 {[%clk 0:01:09]}  a4 {[%clk 0:00:53]} 20. h4 {[%clk 0:01:01]}  axb3 {[%clk 0:00:34]} 21. axb3 {[%clk 0:01:01]}  Bd7 {[%clk 0:00:34]} 22. Re5 {[%clk 0:00:53]}  Ne6 {[%clk 0:00:29]} 23. Rde1 {[%clk 0:00:49]}  Qd6 {[%clk 0:00:18]} 24. d5 {[%clk 0:00:42]}  Nc7 {[%clk 0:00:18]} 25. Rxe8+ {[%clk 0:00:25]}  Rxe8 {[%clk 0:00:18]} 26. Rxe8+ {[%clk 0:00:24]}  Bxe8 {[%clk 0:00:19]} 27. Qg5 {[%clk 0:00:18]}  h6 {[%clk 0:00:00]} 28. Nxf5 {[%clk 0:00:16]} 1-0


[Site "https://www.chess.com"]

[Event "Titled Tuesday Blitz August 22 Late 2023"]
[White "Naroditsky, Daniel"]
[Black "Elsa167"]
[WhiteFideId "2026961"]
[WhiteElo "3154"]
[BlackElo "2896"]
[Result "1-0"]
[Round "9"]
[TimeControl "180+1"]
[Date "2023.08.22"]
[WhiteClock "0:00:03"]
[BlackClock "0:00:00"]
[Board "9"]

1. e4 {[%clk 0:03:00]}  c5 {[%clk 0:02:52]} 2. Nf3 {[%clk 0:02:58]}  d6 {[%clk 0:02:53]} 3. Bb5+ {[%clk 0:02:59]}  Nd7 {[%clk 0:02:53]} 4. O-O {[%clk 0:02:59]}  a6 {[%clk 0:02:53]} 5. Bd3 {[%clk 0:02:59]}  Ngf6 {[%clk 0:02:51]} 6. Re1 {[%clk 0:02:59]}  g6 {[%clk 0:02:52]} 7. c3 {[%clk 0:02:59]}  Bg7 {[%clk 0:02:52]} 8. Bc2 {[%clk 0:02:59]}  O-O {[%clk 0:02:51]} 9. d4 {[%clk 0:02:59]}  cxd4 {[%clk 0:02:52]} 10. cxd4 {[%clk 0:02:59]}  b5 {[%clk 0:02:53]} 11. e5 {[%clk 0:02:54]}  dxe5 {[%clk 0:02:42]} 12. dxe5 {[%clk 0:02:50]}  Ng4 {[%clk 0:02:42]} 13. Bf4 {[%clk 0:02:33]}  Bb7 {[%clk 0:02:27]} 14. Nbd2 {[%clk 0:02:33]}  Qb6 {[%clk 0:01:59]} 15. Qe2 {[%clk 0:02:06]}  Rac8 {[%clk 0:01:58]} 16. Bb3 {[%clk 0:01:59]}  Nc5 {[%clk 0:01:38]} 17. h3 {[%clk 0:01:58]}  Nxb3 {[%clk 0:01:38]} 18. axb3 {[%clk 0:01:59]}  Nh6 {[%clk 0:01:38]} 19. Ne4 {[%clk 0:01:51]}  Nf5 {[%clk 0:01:35]} 20. Rad1 {[%clk 0:01:33]}  Rfd8 {[%clk 0:01:33]} 21. b4 {[%clk 0:01:31]}  Rxd1 {[%clk 0:01:01]} 22. Qxd1 {[%clk 0:01:17]}  Rd8 {[%clk 0:01:00]} 23. Qc1 {[%clk 0:00:53]}  Nd4 {[%clk 0:00:53]} 24. Nxd4 {[%clk 0:00:53]}  Qxd4 {[%clk 0:00:53]} 25. Nc5 {[%clk 0:00:51]}  Bc8 {[%clk 0:00:39]} 26. Bg5 {[%clk 0:00:44]}  Re8 {[%clk 0:00:21]} 27. Bd2 {[%clk 0:00:44]}  Rd8 {[%clk 0:00:16]} 28. Bc3 {[%clk 0:00:43]}  Qd5 {[%clk 0:00:16]} 29. Qf4 {[%clk 0:00:41]}  a5 {[%clk 0:00:11]} 30. e6 {[%clk 0:00:37]}  Bxe6 {[%clk 0:00:09]} 31. Bxg7 {[%clk 0:00:34]}  Kxg7 {[%clk 0:00:09]} 32. Nxe6+ {[%clk 0:00:34]}  fxe6 {[%clk 0:00:09]} 33. bxa5 {[%clk 0:00:35]}  Qa2 {[%clk 0:00:03]} 34. Qb4 {[%clk 0:00:31]}  Kf7 {[%clk 0:00:02]} 35. Re3 {[%clk 0:00:22]}  Rd5 {[%clk 0:00:01]} 36. Rf3+ {[%clk 0:00:13]}  Rf5 {[%clk 0:00:01]} 37. Rxf5+ {[%clk 0:00:11]}  gxf5 {[%clk 0:00:02]} 38. Qxb5 {[%clk 0:00:11]}  Qb1+ {[%clk 0:00:02]} 39. Kh2 {[%clk 0:00:12]}  Qe4 {[%clk 0:00:03]} 40. Qb8 {[%clk 0:00:09]}  e5 {[%clk 0:00:03]} 41. Qb3+ {[%clk 0:00:07]}  e6 {[%clk 0:00:02]} 42. a6 {[%clk 0:00:04]}  Qf4+ {[%clk 0:00:03]} 43. Qg3 {[%clk 0:00:04]}  Qa4 {[%clk 0:00:04]} 44. Qa3 {[%clk 0:00:03]}  Qf4+ {[%clk 0:00:04]} 45. Qg3 {[%clk 0:00:03]}  Qa4 {[%clk 0:00:05]} 46. Qxe5 {[%clk 0:00:04]}  Qxa6 {[%clk 0:00:05]} 47. b4 {[%clk 0:00:03]}  Qc4 {[%clk 0:00:02]} 48. Qc5 {[%clk 0:00:02]}  Qf4+ {[%clk 0:00:02]} 49. Kg1 {[%clk 0:00:03]}  Qc1+ {[%clk 0:00:00]} 50. Qxc1 {[%clk 0:00:03]} 1-0


[Site "https://www.chess.com"]

[Event "Titled Tuesday Blitz August 22 Late 2023"]
[White "Svane, Rasmus"]
[Black "Kushko, Dmitriy"]
[WhiteFideId "4657101"]
[BlackFideId "14162261"]
[WhiteElo "2982"]
[BlackElo "2770"]
[Result "1-0"]
[Round "9"]
[TimeControl "180+1"]
[Date "2023.08.22"]
[WhiteClock "0:01:14"]
[BlackClock "0:00:03"]
[Board "15"]

1. Nf3 {[%clk 0:03:00]}  g6 {[%clk 0:03:00]} 2. e4 {[%clk 0:03:00]}  Bg7 {[%clk 0:03:00]} 3. d4 {[%clk 0:03:01]}  d6 {[%clk 0:03:00]} 4. Bd3 {[%clk 0:03:01]}  Nc6 {[%clk 0:02:59]} 5. d5 {[%clk 0:02:57]}  Ne5 {[%clk 0:02:56]} 6. Nxe5 {[%clk 0:02:58]}  Bxe5 {[%clk 0:02:51]} 7. O-O {[%clk 0:02:58]}  Bg7 {[%clk 0:02:48]} 8. c4 {[%clk 0:02:58]}  Nf6 {[%clk 0:02:45]} 9. Nc3 {[%clk 0:02:59]}  O-O {[%clk 0:02:44]} 10. Bg5 {[%clk 0:02:58]}  c6 {[%clk 0:02:07]} 11. Qd2 {[%clk 0:02:57]}  e5 {[%clk 0:01:44]} 12. dxe6 {[%clk 0:02:42]}  Bxe6 {[%clk 0:01:42]} 13. Kh1 {[%clk 0:02:43]}  Qa5 {[%clk 0:01:38]} 14. f4 {[%clk 0:02:39]}  Rae8 {[%clk 0:01:19]} 15. Rae1 {[%clk 0:02:38]}  Bc8 {[%clk 0:01:16]} 16. h3 {[%clk 0:02:28]}  Nd7 {[%clk 0:00:48]} 17. Bc2 {[%clk 0:02:16]}  Nb6 {[%clk 0:00:48]} 18. Bb3 {[%clk 0:02:14]}  Qc5 {[%clk 0:00:46]} 19. f5 {[%clk 0:02:03]}  gxf5 {[%clk 0:00:36]} 20. Be3 {[%clk 0:01:54]}  Nxc4 {[%clk 0:00:30]} 21. Bxc4 {[%clk 0:01:55]}  Qxc4 {[%clk 0:00:30]} 22. exf5 {[%clk 0:01:55]}  Bxc3 {[%clk 0:00:21]} 23. bxc3 {[%clk 0:01:54]}  f6 {[%clk 0:00:20]} 24. Bh6 {[%clk 0:01:39]}  Qd5 {[%clk 0:00:11]} 25. Qxd5+ {[%clk 0:01:30]}  cxd5 {[%clk 0:00:11]} 26. Bxf8 {[%clk 0:01:30]}  Kxf8 {[%clk 0:00:10]} 27. Rxe8+ {[%clk 0:01:28]}  Kxe8 {[%clk 0:00:11]} 28. g4 {[%clk 0:01:29]}  Kd7 {[%clk 0:00:08]} 29. Kg2 {[%clk 0:01:28]}  b6 {[%clk 0:00:08]} 30. Kg3 {[%clk 0:01:26]}  Ba6 {[%clk 0:00:08]} 31. Re1 {[%clk 0:01:27]}  Bc4 {[%clk 0:00:08]} 32. a3 {[%clk 0:01:27]}  d4 {[%clk 0:00:05]} 33. cxd4 {[%clk 0:01:27]}  Kc6 {[%clk 0:00:05]} 34. Kf4 {[%clk 0:01:25]}  a5 {[%clk 0:00:05]} 35. h4 {[%clk 0:01:24]}  b5 {[%clk 0:00:05]} 36. g5 {[%clk 0:01:24]}  fxg5+ {[%clk 0:00:05]} 37. hxg5 {[%clk 0:01:25]}  b4 {[%clk 0:00:05]} 38. axb4 {[%clk 0:01:26]}  axb4 {[%clk 0:00:06]} 39. g6 {[%clk 0:01:18]}  hxg6 {[%clk 0:00:05]} 40. fxg6 {[%clk 0:01:19]}  b3 {[%clk 0:00:05]} 41. g7 {[%clk 0:01:20]}  Kb5 {[%clk 0:00:04]} 42. Re8 {[%clk 0:01:16]}  Kb4 {[%clk 0:00:05]} 43. g8=Q {[%clk 0:01:16]}  Bxg8 {[%clk 0:00:05]} 44. Rxg8 {[%clk 0:01:17]}  Kc3 {[%clk 0:00:05]} 45. d5 {[%clk 0:01:14]}  b2 {[%clk 0:00:04]} 46. Rb8 {[%clk 0:01:14]}  Kc2 {[%clk 0:00:03]} 47. Kf5 {[%clk 0:01:14]} 1-0


[Site "https://www.chess.com"]

[Event "Titled Tuesday Blitz August 22 Late 2023"]
[White "Zhigalko, Sergei"]
[Black "Arias, Juan Cruz"]
[WhiteFideId "13502956"]
[BlackFideId "118540"]
[WhiteElo "2957"]
[BlackElo "2694"]
[Result "1-0"]
[Round "9"]
[TimeControl "180+1"]
[Date "2023.08.22"]
[WhiteClock "0:00:02"]
[BlackClock "0:00:00"]
[Board "17"]

1. e4 {[%clk 0:03:00]}  c6 {[%clk 0:02:57]} 2. d4 {[%clk 0:03:01]}  d5 {[%clk 0:02:57]} 3. e5 {[%clk 0:03:01]}  c5 {[%clk 0:02:58]} 4. Nf3 {[%clk 0:03:02]}  cxd4 {[%clk 0:02:57]} 5. Qxd4 {[%clk 0:03:03]}  Nc6 {[%clk 0:02:57]} 6. Qf4 {[%clk 0:03:03]}  e6 {[%clk 0:02:57]} 7. Bd3 {[%clk 0:03:03]}  Nb4 {[%clk 0:02:58]} 8. O-O {[%clk 0:03:03]}  Nxd3 {[%clk 0:02:58]} 9. cxd3 {[%clk 0:03:04]}  Ne7 {[%clk 0:02:58]} 10. Nc3 {[%clk 0:03:04]}  Bd7 {[%clk 0:02:53]} 11. Ne2 {[%clk 0:03:00]}  Qb6 {[%clk 0:02:48]} 12. Ned4 {[%clk 0:02:56]}  Ng6 {[%clk 0:02:46]} 13. Qg3 {[%clk 0:02:55]}  Be7 {[%clk 0:02:42]} 14. Be3 {[%clk 0:02:48]}  Qa6 {[%clk 0:02:42]} 15. h4 {[%clk 0:02:42]}  h5 {[%clk 0:02:39]} 16. Rfd1 {[%clk 0:02:34]}  Bb5 {[%clk 0:02:26]} 17. Bg5 {[%clk 0:02:05]}  O-O {[%clk 0:01:51]} 18. Bxe7 {[%clk 0:01:55]}  Nxe7 {[%clk 0:01:52]} 19. Ng5 {[%clk 0:01:55]}  Nf5 {[%clk 0:01:42]} 20. Nxf5 {[%clk 0:01:49]}  exf5 {[%clk 0:01:43]} 21. a4 {[%clk 0:01:22]}  Bd7 {[%clk 0:01:38]} 22. Qf3 {[%clk 0:01:22]}  Qg6 {[%clk 0:01:21]} 23. Qxd5 {[%clk 0:01:09]}  Bc6 {[%clk 0:01:21]} 24. Qc4 {[%clk 0:01:09]}  Rad8 {[%clk 0:01:18]} 25. f3 {[%clk 0:00:50]}  Bd5 {[%clk 0:01:16]} 26. Qf4 {[%clk 0:00:50]}  Rfe8 {[%clk 0:01:04]} 27. Rac1 {[%clk 0:00:44]}  Qb6+ {[%clk 0:01:00]} 28. d4 {[%clk 0:00:36]}  Qxb2 {[%clk 0:00:57]} 29. Qxf5 {[%clk 0:00:31]}  g6 {[%clk 0:00:57]} 30. Qf4 {[%clk 0:00:21]}  Qb6 {[%clk 0:00:57]} 31. Kh2 {[%clk 0:00:19]}  Rc8 {[%clk 0:00:53]} 32. Kg3 {[%clk 0:00:18]}  a5 {[%clk 0:00:50]} 33. Ne4 {[%clk 0:00:09]}  Bxe4 {[%clk 0:00:33]} 34. Qxe4 {[%clk 0:00:09]}  Qb3 {[%clk 0:00:29]} 35. Rxc8 {[%clk 0:00:03]}  Rxc8 {[%clk 0:00:28]} 36. Rb1 {[%clk 0:00:03]}  Qxa4 {[%clk 0:00:27]} 37. e6 {[%clk 0:00:03]}  Rc7 {[%clk 0:00:12]} 38. e7 {[%clk 0:00:02]}  Qe8 {[%clk 0:00:11]} 39. Re1 {[%clk 0:00:03]}  a4 {[%clk 0:00:12]} 40. d5 {[%clk 0:00:03]}  Rd7 {[%clk 0:00:12]} 41. Qe5 {[%clk 0:00:02]}  a3 {[%clk 0:00:11]} 42. d6 {[%clk 0:00:02]}  b5 {[%clk 0:00:10]} 43. Qxb5 {[%clk 0:00:01]}  a2 {[%clk 0:00:00]} 44. Qxd7 {[%clk 0:00:02]} 1-0


[Site "https://www.chess.com"]

[Event "Titled Tuesday Blitz August 22 Late 2023"]
[White "Saif, Malek"]
[Black "Sargsyan, Shant"]
[WhiteFideId "8104220"]
[BlackFideId "13306766"]
[WhiteElo "2682"]
[BlackElo "2927"]
[Result "0-1"]
[Round "9"]
[TimeControl "180+1"]
[Date "2023.08.22"]
[WhiteClock "0:00:10"]
[BlackClock "0:00:38"]
[Board "18"]

1. e4 {[%clk 0:03:00]}  g6 {[%clk 0:02:59]} 2. d4 {[%clk 0:03:00]}  Nf6 {[%clk 0:03:00]} 3. Nc3 {[%clk 0:03:01]}  d5 {[%clk 0:03:00]} 4. e5 {[%clk 0:02:54]}  Ne4 {[%clk 0:03:00]} 5. Nxe4 {[%clk 0:02:54]}  dxe4 {[%clk 0:03:00]} 6. c3 {[%clk 0:02:50]}  Bg7 {[%clk 0:02:58]} 7. Ne2 {[%clk 0:02:46]}  O-O {[%clk 0:02:55]} 8. Ng3 {[%clk 0:02:46]}  c5 {[%clk 0:02:56]} 9. Nxe4 {[%clk 0:02:44]}  cxd4 {[%clk 0:02:55]} 10. cxd4 {[%clk 0:02:44]}  Nc6 {[%clk 0:02:55]} 11. Be3 {[%clk 0:02:44]}  Qa5+ {[%clk 0:02:56]} 12. Qd2 {[%clk 0:02:27]}  Qxd2+ {[%clk 0:02:43]} 13. Nxd2 {[%clk 0:02:26]}  Rd8 {[%clk 0:02:43]} 14. Nf3 {[%clk 0:02:26]}  Bg4 {[%clk 0:02:43]} 15. Rd1 {[%clk 0:02:26]}  Nb4 {[%clk 0:02:27]} 16. a3 {[%clk 0:02:19]}  Nc2+ {[%clk 0:02:24]} 17. Ke2 {[%clk 0:02:05]}  Rac8 {[%clk 0:02:24]} 18. h3 {[%clk 0:01:55]}  Bxf3+ {[%clk 0:02:21]} 19. Kxf3 {[%clk 0:01:50]}  Bxe5 {[%clk 0:02:21]} 20. Bd3 {[%clk 0:01:30]}  Nxd4+ {[%clk 0:02:17]} 21. Bxd4 {[%clk 0:01:27]}  Bxd4 {[%clk 0:02:17]} 22. Be4 {[%clk 0:01:24]}  b6 {[%clk 0:02:06]} 23. Rd2 {[%clk 0:01:23]}  f5 {[%clk 0:02:05]} 24. Bb1 {[%clk 0:01:22]}  e5 {[%clk 0:02:05]} 25. g4 {[%clk 0:01:20]}  e4+ {[%clk 0:01:45]} 26. Ke2 {[%clk 0:01:20]}  Be5 {[%clk 0:01:31]} 27. gxf5 {[%clk 0:01:13]}  gxf5 {[%clk 0:01:31]} 28. Ba2+ {[%clk 0:00:59]}  Kg7 {[%clk 0:01:28]} 29. Rhd1 {[%clk 0:00:44]}  Rxd2+ {[%clk 0:01:27]} 30. Rxd2 {[%clk 0:00:44]}  Kf6 {[%clk 0:01:27]} 31. Bb3 {[%clk 0:00:36]}  Kg5 {[%clk 0:01:22]} 32. Rd7 {[%clk 0:00:35]}  Bxb2 {[%clk 0:01:16]} 33. Rxh7 {[%clk 0:00:33]}  Rc3 {[%clk 0:01:14]} 34. Be6 {[%clk 0:00:31]}  Rxa3 {[%clk 0:01:10]} 35. Rf7 {[%clk 0:00:28]}  Rf3 {[%clk 0:00:48]} 36. Rxa7 {[%clk 0:00:20]}  Bd4 {[%clk 0:00:45]} 37. Rd7 {[%clk 0:00:18]}  Bc5 {[%clk 0:00:40]} 38. Rd5 {[%clk 0:00:18]}  Rxf2+ {[%clk 0:00:40]} 39. Ke1 {[%clk 0:00:18]}  Kf6 {[%clk 0:00:39]} 40. Bc8 {[%clk 0:00:13]}  e3 {[%clk 0:00:39]} 41. h4 {[%clk 0:00:12]}  Bb4+ {[%clk 0:00:39]} 42. Kd1 {[%clk 0:00:11]}  e2+ {[%clk 0:00:39]} 43. Kc1 {[%clk 0:00:09]}  e1=Q+ {[%clk 0:00:40]} 44. Rd1 {[%clk 0:00:10]}  Qc3+ {[%clk 0:00:38]} 45. Kb1 {[%clk 0:00:10]}  Qb2# {[%clk 0:00:38]} 0-1


[Site "https://www.chess.com"]